[Event "Denmark Team Championship 2022"]
[Site "Denmark"]
[Date "2022.10.30"]
[Round "2.4"]
[White "Vasli, Aref"]
[Black "Rostgaard, Tobias Valentin"]
[Result "1-0"]
[ECO "B51"]
[WhiteElo "2374"]
[BlackElo "2323"]
[Annotator "ChessBase"]
[PlyCount "81"]
[EventDate "2022.10.29"]
[EventType "team-tourn"]
[EventCountry "DEN"]
[SourceTitle "playchess.com"]
[Source "ChessBase"]
[SourceQuality "1"]
[TimeControl "40/5400+30:1800+30"]

1. e4 {[%emt 0:00:18]} c5 {[%emt 0:01:49]} 2. Nf3 {[%emt 0:00:10]} d6 {[%emt 0:00:39]} 3. Bb5+ {[%emt 0:00:16]} Nd7 {[%emt 0:00:16]} 4. Ba4 {[%emt 0:00:18]} Ngf6 {[%emt 0:01:00]} 5. O-O {[%emt 0:00:14]} a6 {[%emt 0:03:54]} 6. c4 {[%emt 0:00:10]} e5 {[%emt 0:01:06]} 7. Nc3 {[%emt 0:00:46]} g6 {[%emt 0:00:43]} 8. d3 {[%emt 0:01:47]} Bg7 {[%emt 0:00:15]} 9. a3 {[%emt 0:01:58]} O-O {[%emt 0:00:51]} 10. b4 {[%emt 0:00:45]} h6 {[%emt 0:12:40]} 11. Rb1 {[%emt 0:01:27]} Rb8 {[%emt 0:05:50]} 12. Ne1 {[%emt 0:05:11]} Nh5 {[%emt 0:08:05]} 13. Nd5 {[%emt 0:09:46]} b5 {[%emt 0:02:32]} 14. Bb3 {[%emt 0:01:27]} cxb4 {[%emt 0:09:08]} 15. cxb5 {[%emt 0:02:47]} Nc5 {[%emt 0:10:29]} 16. b6 {[%emt 0:07:52]} Nf6 {[%emt 0:01:37]} 17. Nxf6+ {[%emt 0:06:30]} Qxf6 {[%emt 0:01:30]} 18. Bd5 {[%emt 0:04:45]} Rxb6 {[%emt 0:03:29]} 19. axb4 {[%emt 0:01:05]} Ne6 {[%emt 0:01:47]} 20. Be3 {[%emt 0:00:09]} Nd4 {[%emt 0:00:06]} 21. Qd2 {[%emt 0:09:48]} g5 {[%emt 0:10:58]} 22. Nc2 {[%emt 0:03:23]} Be6 {[%emt 0:02:11]} 23. Na3 {[%emt 0:04:03]} Bxd5 {[%emt 0:02:08]} 24. exd5 {[%emt 0:00:13]} g4 {[%emt 0:03:07]} 25. Nc4 {[%emt 0:01:44]} Rb5 {[%emt 0:02:24]} 26. Bxd4 {[%emt 0:00:24]} exd4 {[%emt 0:00:10]} 27. Ra1 {[%emt 0:01:12]} Rxd5 {[%emt 0:04:20]} 28. Rxa6 {[%emt 0:00:58]} Rd8 {[%emt 0:03:00]} 29. Qe2 {[%emt 0:01:12]} h5 {[%emt 0:03:16]} 30. Rb1 {[%emt 0:03:00]} Qg5 {[%emt 0:03:10]} 31. Ra5 {[%emt 0:01:36]} Rb8 {[%emt 0:01:00]} 32. Rxd5 {[%emt 0:01:32]} Qxd5 {[%emt 0:00:08]} 33. b5 {[%emt 0:00:36]} Qc5 {[%emt 0:00:39]} 34. Qe7 {[%emt 0:03:05]} Bf8 {[%emt 0:01:25]} 35. Qd7 {[%emt 0:00:14]} Qd5 {[%emt 0:01:24]} 36. b6 {[%emt 0:00:44]} Rb7 {[%emt 0:00:52]} 37. Qc8 {[%emt 0:00:12]} f5 {[%emt 0:00:15]} 38. Nxd6 {[%emt 0:02:43]} Qa2 {[%emt 0:00:45]} 39. Qc4+ {[%emt 0:00:08]} Qxc4 {[%emt 0:00:09]} 40. Nxc4 {[%emt 0:00:02]} Bc5 {[%emt 0:00:38]} 41. Rb5 {[%emt 0:30:14]} 1-0

[Event "Denmark Team Championship 2022"]
[Site "Denmark"]
[Date "2022.10.30"]
[Round "2.4"]
[White "Sorensen, Jan"]
[Black "Borge, Nikolaj"]
[Result "1-0"]
[ECO "B31"]
[WhiteElo "2370"]
[BlackElo "2388"]
[Annotator "ChessBase"]
[PlyCount "57"]
[EventDate "2022.10.29"]
[EventType "team-tourn"]
[EventCountry "DEN"]
[SourceTitle "playchess.com"]
[Source "ChessBase"]
[SourceQuality "1"]
[TimeControl "40/5400+30:1800+30"]

1. e4 {[%emt 0:00:03]} c5 {[%emt 0:00:37]} 2. Nf3 {[%emt 0:00:14]} Nc6 {[%emt 0:00:31]} 3. Bb5 {[%emt 0:01:16]} g6 {[%emt 0:00:05]} 4. O-O {[%emt 0:01:22]} Bg7 {[%emt 0:00:05]} 5. c3 {[%emt 0:02:05]} Nf6 {[%emt 0:01:25]} 6. Re1 {[%emt 0:00:58]} O-O {[%emt 0:00:26]} 7. h3 {[%emt 0:01:52]} d5 {[%emt 0:14:34]} 8. e5 {[%emt 0:00:58]} Ne8 {[%emt 0:07:39]} 9. d4 {[%emt 0:01:20]} Qb6 {[%emt 0:05:23]} 10. Bxc6 {[%emt 0:04:21]} Qxc6 {[%emt 0:03:21]} 11. dxc5 {[%emt 0:01:23]} Qxc5 {[%emt 0:01:50]} 12. Nbd2 {[%emt 0:01:17]} f6 {[%emt 0:14:24]} 13. Nb3 {[%emt 0:02:34]} Qc6 {[%emt 0:10:06]} 14. Bf4 {[%emt 0:21:11]} f5 {[%emt 0:09:40]} 15. Qd2 {[%emt 0:04:38]} Nc7 {[%emt 0:02:36]} 16. Nfd4 {[%emt 0:05:35]} Qc4 {[%emt 0:09:59]} 17. Bg5 {[%emt 0:12:38]} Re8 {[%emt 0:04:48]} 18. e6 {[%emt 0:07:22]} a5 {[%emt 0:00:45]} 19. Qf4 {[%emt 0:04:49]} Ra6 {[%emt 0:03:57]} 20. Qh4 {[%emt 0:07:58]} Nxe6 {[%emt 0:02:59]} 21. Bxe7 {[%emt 0:00:49]} a4 {[%emt 0:01:54]} 22. Nd2 {[%emt 0:00:55]} Qc7 {[%emt 0:00:34]} 23. Bf6 {[%emt 0:01:22]} a3 {[%emt 0:00:45]} 24. Bxg7 {[%emt 0:01:08]} Kxg7 {[%emt 0:00:42]} 25. Nxe6+ {[%emt 0:02:33]} Bxe6 {[%emt 0:00:53]} 26. Qd4+ {[%emt 0:00:12]} Kg8 {[%emt 0:01:05]} 27. bxa3 {[%emt 0:00:53]} Rxa3 {[%emt 0:00:44]} 28. Nb3 {[%emt 0:00:59]} Qg7 {[%emt 0:01:27]} 29. Qb4 {[%emt 0:04:05]} 1-0

[Event "Denmark Team Championship 2022"]
[Site "Denmark"]
[Date "2022.10.30"]
[Round "2.4"]
[White "Matthiesen, Arne"]
[Black "Sylvan, Jacob"]
[Result "1/2-1/2"]
[ECO "D51"]
[WhiteElo "2314"]
[BlackElo "2310"]
[Annotator "ChessBase"]
[PlyCount "32"]
[EventDate "2022.10.29"]
[EventType "team-tourn"]
[EventCountry "DEN"]
[SourceTitle "playchess.com"]
[Source "ChessBase"]
[SourceQuality "1"]
[TimeControl "40/5400+30:1800+30"]

1. d4 {[%emt 0:00:21]} d5 {[%emt 0:00:36]} 2. c4 {[%emt 0:00:07]} e6 {[%emt 0:00:09]} 3. Nc3 {[%emt 0:00:06]} Nf6 {[%emt 0:00:08]} 4. Bg5 {[%emt 0:00:55]} Nbd7 {[%emt 0:04:19]} 5. e3 {[%emt 0:02:28]} Be7 {[%emt 0:00:56]} 6. Nf3 {[%emt 0:00:49]} h6 {[%emt 0:01:19]} 7. Bh4 {[%emt 0:00:17]} O-O {[%emt 0:00:34]} 8. Qc2 {[%emt 0:07:39]} c5 {[%emt 0:07:35]} 9. cxd5 {[%emt 0:14:00]} exd5 {[%emt 0:08:28]} 10. Be2 {[%emt 0:00:39]} c4 {[%emt 0:03:52]} 11. O-O {[%emt 0:01:05]} b6 {[%emt 0:10:51]} 12. Ne5 {[%emt 0:09:18]} Bb7 {[%emt 0:03:18]} 13. Bf3 {[%emt 0:07:28]} Re8 {[%emt 0:16:41]} 14. Rfd1 {[%emt 0:08:55]} Qc8 {[%emt 0:05:19]} 15. Rac1 {[%emt 0:07:29]} a6 {[%emt 0:13:44]} 16. a4 {[%emt 0:16:45]} Bd8 {[%emt 0:01:26]} 1/2-1/2

[Event "Denmark Team Championship 2022"]
[Site "Denmark"]
[Date "2022.10.30"]
[Round "2.4"]
[White "Rasmussen, Casper"]
[Black "Christensen, Jan Schleicher"]
[Result "1/2-1/2"]
[ECO "A05"]
[WhiteElo "2289"]
[BlackElo "2167"]
[Annotator "ChessBase"]
[PlyCount "86"]
[EventDate "2022.10.29"]
[EventType "team-tourn"]
[EventCountry "DEN"]
[SourceTitle "playchess.com"]
[Source "ChessBase"]
[SourceQuality "1"]
[TimeControl "40/5400+30:1800+30"]

1. Nf3 {[%emt 0:00:06]} Nf6 {[%emt 0:00:04]} 2. c4 {[%emt 0:00:10]} c5 {[%emt 0:00:12]} 3. g3 {[%emt 0:00:10]} b6 {[%emt 0:02:04]} 4. Bg2 {[%emt 0:00:09]} Bb7 {[%emt 0:00:04]} 5. O-O {[%emt 0:00:11]} e6 {[%emt 0:00:10]} 6. Nc3 {[%emt 0:00:11]} a6 {[%emt 0:00:33]} 7. Re1 {[%emt 0:00:09]} d6 {[%emt 0:00:20]} 8. d4 {[%emt 0:02:39]} cxd4 {[%emt 0:00:47]} 9. Nxd4 {[%emt 0:01:18]} Bxg2 {[%emt 0:01:19]} 10. Kxg2 {[%emt 0:00:16]} Qc7 {[%emt 0:00:30]} 11. e4 {[%emt 0:01:10]} Be7 {[%emt 0:01:53]} 12. Be3 {[%emt 0:00:40]} Nbd7 {[%emt 0:00:44]} 13. Rc1 {[%emt 0:04:46]} O-O {[%emt 0:00:40]} 14. f3 {[%emt 0:03:34]} Rfe8 {[%emt 0:00:59]} 15. b3 {[%emt 0:03:04]} Rac8 {[%emt 0:00:48]} 16. Qd2 {[%emt 0:01:03]} Qb7 {[%emt 0:03:07]} 17. Red1 {[%emt 0:11:03]} Bf8 {[%emt 0:02:09]} 18. g4 {[%emt 0:10:00]} Ne5 {[%emt 0:04:42]} 19. h3 {[%emt 0:03:20]} Ng6 {[%emt 0:08:41]} 20. Qf2 {[%emt 0:04:59]} b5 {[%emt 0:06:17]} 21. cxb5 {[%emt 0:04:00]} axb5 {[%emt 0:00:26]} 22. Ndxb5 {[%emt 0:08:48]} d5 {[%emt 0:00:51]} 23. exd5 {[%emt 0:03:29]} exd5 {[%emt 0:03:20]} 24. Nd4 {[%emt 0:02:59]} Bd6 {[%emt 0:01:42]} 25. Nce2 {[%emt 0:04:36]} h5 {[%emt 0:26:12]} 26. Nf5 {[%emt 0:05:59]} Ba3 {[%emt 0:02:25]} 27. Rxc8 {[%emt 0:00:41]} Qxc8 {[%emt 0:00:47]} 28. Ned4 {[%emt 0:02:00]} Qb8 {[%emt 0:05:20]} 29. Qg3 {[%emt 0:04:53]} hxg4 {[%emt 0:11:42]} 30. hxg4 {[%emt 0:00:46]} Qc8 {[%emt 0:03:26]} 31. Bg5 {[%emt 0:06:23]} Qa6 {[%emt 0:00:28]} 32. Re1 {[%emt 0:03:39]} Rxe1 {[%emt 0:01:17]} 33. Qxe1 {[%emt 0:00:08]} Bc5 {[%emt 0:00:31]} 34. Qd2 {[%emt 0:03:40]} Nh7 {[%emt 0:04:04]} 35. Be3 {[%emt 0:01:09]} Nf6 {[%emt 0:03:42]} 36. Bg5 {[%emt 0:00:30]} Nh7 {[%emt 0:00:23]} 37. Be3 {[%emt 0:00:01]} Nf6 {[%emt 0:00:05]} 38. b4 {[%emt 0:03:28]} Bb6 {[%emt 0:00:37]} 39. b5 {[%emt 0:00:35]} Qa3 {[%emt 0:00:32]} 40. Bg5 {[%emt 0:03:02]} Nd7 {[%emt 0:01:51]} 41. Be3 {[%emt 0:15:23]} Nde5 {[%emt 0:01:59]} 42. Bf2 {[%emt 0:02:45]} Nc4 {[%emt 0:02:43]} 43. Qc2 {[%emt 0:07:03]} Nf4+ 1/2-1/2

[Event "Denmark Team Championship 2022"]
[Site "Denmark"]
[Date "2022.10.30"]
[Round "2.5"]
[White "Storme, Isak"]
[Black "Heimisson, Hilmir Freyr"]
[Result "1-0"]
[ECO "E06"]
[WhiteElo "2424"]
[BlackElo "2293"]
[Annotator "ChessBase"]
[PlyCount "75"]
[EventDate "2022.10.29"]
[EventType "team-tourn"]
[EventCountry "DEN"]
[SourceTitle "playchess.com"]
[Source "ChessBase"]
[SourceQuality "1"]
[TimeControl "40/5400+30:1800+30"]

1. d4 {[%emt 0:00:05]} e6 {[%emt 0:00:48]} 2. c4 {[%emt 0:01:11]} Nf6 {[%emt 0:00:18]} 3. Nf3 {[%emt 0:02:13]} d5 {[%emt 0:00:15]} 4. g3 {[%emt 0:00:33]} Be7 {[%emt 0:00:36]} 5. Bg2 {[%emt 0:00:13]} O-O {[%emt 0:00:21]} 6. O-O {[%emt 0:05:27]} dxc4 {[%emt 0:00:14]} 7. Qc2 {[%emt 0:00:15]} a6 {[%emt 0:01:56]} 8. a4 {[%emt 0:00:07]} Bd7 {[%emt 0:00:15]} 9. Bg5 {[%emt 0:10:41]} Bc6 {[%emt 0:11:31]} 10. Rd1 {[%emt 0:02:44]} b5 {[%emt 0:01:56]} 11. Bxf6 {[%emt 0:02:43]} Bxf6 {[%emt 0:02:25]} 12. Nc3 {[%emt 0:00:35]} Qe8 {[%emt 0:05:22]} 13. e4 {[%emt 0:17:56]} g6 {[%emt 0:11:45]} 14. h4 {[%emt 0:08:02]} Bg7 {[%emt 0:16:44]} 15. h5 {[%emt 0:03:59]} Bb7 {[%emt 0:03:04]} 16. d5 {[%emt 0:10:47]} b4 {[%emt 0:09:03]} 17. Ne2 {[%emt 0:00:50]} exd5 {[%emt 0:00:27]} 18. exd5 {[%emt 0:00:46]} a5 {[%emt 0:00:23]} 19. Nfd4 {[%emt 0:06:14]} Ba6 {[%emt 0:05:16]} 20. Nf4 {[%emt 0:07:11]} Nd7 {[%emt 0:09:27]} 21. Nc6 {[%emt 0:03:25]} c3 {[%emt 0:03:55]} 22. Re1 {[%emt 0:02:20]} cxb2 {[%emt 0:06:10]} 23. Rad1 {[%emt 0:00:28]} Ne5 {[%emt 0:01:37]} 24. h6 {[%emt 0:00:46]} Bf6 {[%emt 0:04:35]} 25. Nh5 {[%emt 0:01:49]} Bh8 {[%emt 0:03:09]} 26. Ng7 {[%emt 0:00:41]} Nxc6 {[%emt 0:01:08]} 27. Nxe8 {[%emt 0:01:13]} Nd4 {[%emt 0:00:36]} 28. Rxd4 {[%emt 0:02:56]} Bxd4 {[%emt 0:00:30]} 29. Nxc7 {[%emt 0:00:28]} Rac8 {[%emt 0:00:41]} 30. d6 {[%emt 0:01:22]} Rfd8 {[%emt 0:00:30]} 31. d7 {[%emt 0:02:19]} Rxd7 {[%emt 0:00:29]} 32. Nxa6 {[%emt 0:00:22]} Rdd8 {[%emt 0:00:29]} 33. Qe2 {[%emt 0:03:09]} Rc1 {[%emt 0:00:30]} 34. Kh2 {[%emt 0:00:56]} Bg7 {[%emt 0:00:28]} 35. Qe7 {[%emt 0:02:05]} Rdc8 {[%emt 0:00:27]} 36. Bd5 {[%emt 0:00:40]} Bxh6 {[%emt 0:00:38]} 37. Qxf7+ {[%emt 0:00:12]} Kh8 {[%emt 0:00:02]} 38. Re8+ {[%emt 0:00:15]} 1-0

[Event "Denmark Team Championship 2022"]
[Site "Denmark"]
[Date "2022.10.30"]
[Round "2.5"]
[White "Smith, Axel"]
[Black "Olsen, Filip Boe"]
[Result "1/2-1/2"]
[ECO "A18"]
[WhiteElo "2402"]
[BlackElo "2433"]
[Annotator "ChessBase"]
[PlyCount "104"]
[EventDate "2022.10.29"]
[EventType "team-tourn"]
[EventCountry "DEN"]
[SourceTitle "playchess.com"]
[Source "ChessBase"]
[SourceQuality "1"]
[TimeControl "40/5400+30:1800+30"]

1. c4 {[%emt 0:00:01]} Nf6 {[%emt 0:00:12]} 2. Nc3 {[%emt 0:00:02]} e6 {[%emt 0:00:17]} 3. e4 {[%emt 0:00:01]} d5 {[%emt 0:00:20]} 4. cxd5 {[%emt 0:00:25]} exd5 {[%emt 0:00:18]} 5. e5 {[%emt 0:00:06]} Ne4 {[%emt 0:01:07]} 6. d4 {[%emt 0:00:53]} Bb4 {[%emt 0:08:40]} 7. Qa4+ {[%emt 0:00:42]} Nc6 {[%emt 0:00:19]} 8. Bb5 {[%emt 0:00:59]} Bd7 {[%emt 0:06:30]} 9. Nge2 {[%emt 0:01:08]} O-O {[%emt 0:18:57]} 10. O-O {[%emt 0:00:27]} Bxc3 {[%emt 0:02:55]} 11. bxc3 {[%emt 0:00:17]} a6 {[%emt 0:01:05]} 12. Bxc6 {[%emt 0:00:10]} Bxc6 {[%emt 0:00:17]} 13. Qc2 {[%emt 0:00:11]} Bb5 {[%emt 0:01:39]} 14. a4 {[%emt 0:02:00]} Bc4 {[%emt 0:07:02]} 15. f3 {[%emt 0:03:07]} Ng5 {[%emt 0:01:37]} 16. Bxg5 {[%emt 0:00:39]} Qxg5 {[%emt 0:00:10]} 17. f4 {[%emt 0:00:35]} Qh6 {[%emt 0:10:56]} 18. Rf3 {[%emt 0:03:06]} f5 {[%emt 0:01:29]} 19. Ng3 {[%emt 0:18:43]} Qe6 {[%emt 0:02:56]} 20. Nf1 {[%emt 0:13:22]} Bxf1 {[%emt 0:06:39]} 21. Rfxf1 {[%emt 0:03:12]} c5 {[%emt 0:04:43]} 22. Rab1 {[%emt 0:04:18]} Rac8 {[%emt 0:03:52]} 23. Qb3 {[%emt 0:03:34]} Rf7 {[%emt 0:00:39]} 24. Rfd1 {[%emt 0:04:10]} Rd7 {[%emt 0:03:41]} 25. Qb6 {[%emt 0:09:35]} Qxb6 {[%emt 0:04:08]} 26. Rxb6 {[%emt 0:00:02]} cxd4 {[%emt 0:01:16]} 27. Rxd4 {[%emt 0:10:57]} Rxc3 {[%emt 0:02:58]} 28. e6 {[%emt 0:00:32]} Re7 {[%emt 0:02:00]} 29. Rxd5 {[%emt 0:00:21]} g6 {[%emt 0:00:24]} 30. Rd7 {[%emt 0:11:57]} Rc7 {[%emt 0:00:34]} 31. Rxc7 {[%emt 0:00:13]} Rxc7 {[%emt 0:00:02]} 32. Kf2 {[%emt 0:00:09]} Rc4 {[%emt 0:02:01]} 33. Kf3 {[%emt 0:07:25]} Rxa4 {[%emt 0:00:55]} 34. Rxb7 {[%emt 0:00:16]} Re4 {[%emt 0:00:14]} 35. Rb6 {[%emt 0:01:10]} a5 {[%emt 0:01:57]} 36. g4 {[%emt 0:00:08]} h6 {[%emt 0:01:43]} 37. Ra6 {[%emt 0:03:15]} a4 {[%emt 0:00:26]} 38. h4 {[%emt 0:00:26]} h5 {[%emt 0:01:05]} 39. gxf5 {[%emt 0:00:22]} gxf5 {[%emt 0:00:02]} 40. Ra5 {[%emt 0:00:46]} Rxe6 {[%emt 0:01:00]} 41. Rxa4 {[%emt 0:01:34]} Kg7 {[%emt 0:00:47]} 42. Ra7+ {[%emt 0:04:06]} Kg6 {[%emt 0:00:24]} 43. Ra8 {[%emt 0:01:14]} Kg7 {[%emt 0:01:31]} 44. Ra7+ {[%emt 0:00:46]} Kg6 {[%emt 0:00:07]} 45. Ra2 {[%emt 0:00:15]} Rb6 {[%emt 0:00:51]} 46. Rg2+ {[%emt 0:00:49]} Kf6 {[%emt 0:00:36]} 47. Rg5 {[%emt 0:00:06]} Rb3+ {[%emt 0:00:06]} 48. Ke2 {[%emt 0:00:54]} Rb2+ {[%emt 0:00:12]} 49. Kd3 {[%emt 0:00:19]} Rb3+ {[%emt 0:00:34]} 50. Ke2 {[%emt 0:00:02]} Rb2+ {[%emt 0:00:07]} 51. Kd3 {[%emt 0:00:20]} Rb3+ {[%emt 0:00:06]} 52. Ke2 {[%emt 0:00:08]} Rb2+ {[%emt 0:00:04]} 1/2-1/2

[Event "Denmark Team Championship 2022"]
[Site "Denmark"]
[Date "2022.10.30"]
[Round "2.5"]
[White "Hove, Esben Kjems"]
[Black "Hansen, Lars Bo"]
[Result "1-0"]
[ECO "A40"]
[WhiteElo "2305"]
[BlackElo "2560"]
[Annotator "ChessBase"]
[PlyCount "68"]
[EventDate "2022.10.29"]
[EventType "team-tourn"]
[EventCountry "DEN"]
[SourceTitle "playchess.com"]
[Source "ChessBase"]
[SourceQuality "1"]
[TimeControl "40/5400+30:1800+30"]

1. d4 {[%emt 0:00:08]} e6 {[%emt 0:06:23]} 2. Nf3 {[%emt 0:02:24]} Nf6 {[%emt 0:02:46]} 3. g3 {[%emt 0:02:01]} c5 {[%emt 0:02:39]} 4. Bg2 {[%emt 0:00:24]} cxd4 {[%emt 0:00:39]} 5. O-O {[%emt 0:00:55]} d5 {[%emt 0:00:26]} 6. Nxd4 {[%emt 0:00:18]} e5 {[%emt 0:01:25]} 7. Nb3 {[%emt 0:01:47]} Be6 {[%emt 0:00:48]} 8. c4 {[%emt 0:03:45]} Nc6 {[%emt 0:01:53]} 9. cxd5 {[%emt 0:00:20]} Nxd5 {[%emt 0:01:33]} 10. N1d2 {[%emt 0:04:15]} h6 {[%emt 0:04:18]} 11. Ne4 {[%emt 0:04:29]} Qb6 {[%emt 0:01:00]} 12. Nd6+ {[%emt 0:12:26]} Bxd6 {[%emt 0:00:20]} 13. Bxd5 {[%emt 0:00:06]} Bxd5 {[%emt 0:06:19]} 14. Qxd5 {[%emt 0:00:43]} Rd8 {[%emt 0:07:37]} 15. Be3 {[%emt 0:02:33]} Qa6 {[%emt 0:35:54]} 16. Bc5 {[%emt 0:19:34]} Bxc5 {[%emt 0:06:32]} 17. Qxc5 {[%emt 0:00:28]} Qxe2 {[%emt 0:01:41]} 18. f4 {[%emt 0:09:11]} Qd3 {[%emt 0:10:28]} 19. fxe5 {[%emt 0:06:50]} Rd5 {[%emt 0:00:38]} 20. Qf2 {[%emt 0:01:31]} Nxe5 {[%emt 0:02:12]} 21. Qxa7 {[%emt 0:03:59]} O-O {[%emt 0:00:41]} 22. Qf2 {[%emt 0:02:30]} h5 {[%emt 0:02:38]} 23. Rae1 {[%emt 0:03:53]} f6 {[%emt 0:01:32]} 24. Re3 {[%emt 0:02:16]} Qa6 {[%emt 0:00:29]} 25. Qe2 {[%emt 0:03:24]} Qxa2 {[%emt 0:01:08]} 26. Ra1 {[%emt 0:00:25]} Qxa1+ {[%emt 0:00:18]} 27. Nxa1 {[%emt 0:00:06]} Rfd8 {[%emt 0:00:09]} 28. Nb3 {[%emt 0:00:40]} Rd1+ {[%emt 0:00:51]} 29. Kg2 {[%emt 0:00:20]} Rb1 {[%emt 0:00:32]} 30. Rc3 {[%emt 0:04:54]} Rdd1 {[%emt 0:00:24]} 31. Qxh5 {[%emt 0:01:34]} Rxb2+ {[%emt 0:00:40]} 32. Kh3 {[%emt 0:00:08]} Rd8 {[%emt 0:00:55]} 33. Qf5 {[%emt 0:00:47]} g6 {[%emt 0:00:38]} 34. Qe6+ {[%emt 0:00:13]} Kg7 {[%emt 0:00:00]} 1-0

[Event "Denmark Team Championship 2022"]
[Site "Denmark"]
[Date "2022.10.30"]
[Round "2.5"]
[White "Kistrup, Nicolai"]
[Black "Pilgaard, Kim"]
[Result "1/2-1/2"]
[ECO "D30"]
[WhiteElo "2274"]
[BlackElo "2379"]
[Annotator "ChessBase"]
[PlyCount "65"]
[EventDate "2022.10.29"]
[EventType "team-tourn"]
[EventCountry "DEN"]
[SourceTitle "playchess.com"]
[Source "ChessBase"]
[SourceQuality "1"]
[TimeControl "40/5400+30:1800+30"]

1. d4 {[%emt 0:00:03]} d5 {[%emt 0:00:12]} 2. c4 {[%emt 0:00:32]} e6 {[%emt 0:00:14]} 3. Nf3 {[%emt 0:00:47]} c6 {[%emt 0:00:16]} 4. g3 {[%emt 0:04:03]} dxc4 {[%emt 0:00:11]} 5. Bg2 {[%emt 0:00:37]} b5 {[%emt 0:00:09]} 6. a4 {[%emt 0:13:50]} Bb7 {[%emt 0:00:13]} 7. Ne5 {[%emt 0:05:03]} a6 {[%emt 0:02:38]} 8. O-O {[%emt 0:01:18]} Nf6 {[%emt 0:02:09]} 9. b3 {[%emt 0:00:21]} cxb3 {[%emt 0:00:50]} 10. Qxb3 {[%emt 0:00:06]} Qxd4 {[%emt 0:00:32]} 11. Bb2 {[%emt 0:00:50]} Qb4 {[%emt 0:00:09]} 12. Qc2 {[%emt 0:01:30]} Qc5 {[%emt 0:00:08]} 13. Qd3 {[%emt 0:01:31]} Qd6 {[%emt 0:03:12]} 14. Qf3 {[%emt 0:04:54]} Be7 {[%emt 0:01:47]} 15. Na3 {[%emt 0:19:40]} O-O {[%emt 0:03:30]} 16. axb5 {[%emt 0:24:56]} axb5 {[%emt 0:00:41]} 17. Nxb5 {[%emt 0:06:14]} Qb4 {[%emt 0:16:00]} 18. Ba3 {[%emt 0:07:45]} Qxb5 {[%emt 0:00:27]} 19. Bxe7 {[%emt 0:01:49]} Rxa1 {[%emt 0:00:26]} 20. Rxa1 {[%emt 0:00:25]} Qxe5 {[%emt 0:00:11]} 21. Rb1 {[%emt 0:01:02]} Re8 {[%emt 0:08:47]} 22. Rxb7 {[%emt 0:01:01]} Nbd7 {[%emt 0:00:15]} 23. Bb4 {[%emt 0:02:47]} Qa1+ {[%emt 0:01:09]} 24. Bf1 {[%emt 0:00:06]} Qa6 {[%emt 0:18:58]} 25. Rc7 {[%emt 0:00:14]} Qb6 {[%emt 0:00:40]} 26. Bd6 {[%emt 0:01:07]} c5 {[%emt 0:00:11]} 27. Qc6 {[%emt 0:00:50]} Qxc6 {[%emt 0:01:51]} 28. Rxc6 {[%emt 0:00:11]} Ne4 {[%emt 0:01:35]} 29. Bf4 {[%emt 0:00:37]} h6 {[%emt 0:02:32]} 30. f3 {[%emt 0:00:33]} Nc3 {[%emt 0:01:29]} 31. Bd6 {[%emt 0:00:38]} Nb5 {[%emt 0:02:25]} 32. Bxc5 {[%emt 0:00:28]} Nxc5 {[%emt 0:00:20]} 33. Rxc5 {[%emt 0:00:15]} 1/2-1/2